Cogmind - Beta 13 @@@ ROGUE MODE // 2024.07.01 @ 09:37:33 Player: RAT Result: Destroyed by X-57 Shotgunner with High-powered Shotgun Performance ------------- Evolutions (2) 1000 Regions Visited (3) 600 Robots Destroyed (73) 365 Value Destroyed (1643) 1643 Prototype IDs (1) 20 Alien Tech Used (0) 0 Bonus (172) 172 TOTAL SCORE: 3800 Bonus ------- High Alert Combat Kills 172 Cogmind --------- Core Integrity 0/550 Matter 263/500 Energy 45/100 System Corruption 0% Temperature Cool (0) Movement Core (450) Ox8 Location -8/Materials Parts ------- > --- POWER (1) -------- (None) > --- PROPULSION (4) --- (None) > --- UTILITY (3) ------ Large Storage Unit High-capacity Matter Pod > --- WEAPON (3) ------- Field Laser > --- INVENTORY (15) --- Light Nuclear Core Light Angular Momentum Engine Aluminum Leg Advanced Visual Processing Unit Hacking Suite Hacking Suite Peak State ------------ > --- POWER ------------ Deuterium Engine > --- PROPULSION ------- Aluminum Leg Aluminum Leg VSS Leg VSS Leg > --- UTILITY ---------- Large Storage Unit High-capacity Matter Pod Seismic Detector > --- WEAPON ----------- Improved Assault Rifle Improved Assault Rifle Improved Light Cannon > --- INVENTORY -------- Deuterium Engine Aluminum Leg Aluminum Leg VSS Leg Heat Sink Grenade Launcher Rocket Launcher [Rating: 23] Favorites ----------- Power Deuterium Engine Engine Deuterium Engine Propulsion Aluminum Leg Treads Light Treads Leg Aluminum Leg Utility Small Storage Unit Device Seismic Detector Storage Small Storage Unit Processor Terrain Scan Processor Protection Light Armor Plating Weapon Improved Light Cannon Energy Gun Medium Laser Ballistic Gun Improved Assault Rifle Ballistic Cannon Improved Light Cannon Launcher Rocket Launcher Build | -11 -10 -9 -8 ------- Run | Yrd Mat Mat Mat Slots Evolved 4 | . . 2 2 Power . | . . . . Propulsion 2 | . . 2 . Utility 1 | . . . 1 Weapon 1 | . . . 1 Parts Attached 48 | 7 5 23 13 Power 5 | 1 . 3 1 Engine 5 | 1 . 3 1 Core . | . . . . Reactor . | . . . . Propulsion 21 | 3 1 11 6 Treads 1 | 1 . . . Leg 20 | 2 1 11 6 Wheel . | . . . . Hover . | . . . . Flight . | . . . . Utility 11 | 1 3 5 2 Device 5 | . 2 2 1 Storage 4 | 1 . 2 1 Processor 1 | . 1 . . Hackware . | . . . . Protection 1 | . . 1 . Artifact . | . . . . Weapon 11 | 2 1 4 4 Energy Gun 2 | 1 . . 1 Energy Cannon . | . . . . Ballistic Gun 3 | 1 . 1 1 Ballistic Cannon 4 | . 1 3 . Launcher 2 | . . . 2 Special Weapon . | . . . . Impact Weapon . | . . . . Slashing Weapon . | . . . . Piercing Weapon . | . . . . Special Melee Weapon . | . . . . Unidentified Prototypes 1 | . . 1 . Parts Lost 24 | . 1 7 16 Power 2 | . . 1 1 Propulsion 11 | . 1 2 8 Utility 3 | . . 1 2 Weapon 8 | . . 3 5 Highest Loss Streak 6 | . 1 2 6 To Critical Strikes . | . . . . Average Slot Usage (%) 93 | . 95 98 76 Engine 10 | . 14 11 6 Leg 35 | . 26 43 27 Device 9 | . 10 10 5 Storage 13 | . 14 11 18 Energy Gun 4 | . 14 . . Ballistic Gun 4 | . 4 2 10 Ballistic Cannon 13 | . 9 18 2 Launcher 1 | . . . 5 Naked Turns . | . . . . Heaviest Build 44 | 13 16 37 44 Greatest Support 48 | 20 20 48 44 Greatest Overweight (x) 7 | . 1 1 7 Average Overweight (x) . | . . . . Largest Inventory Capacity 15 | 8 8 15 15 Average Capacity 9 | 6 8 8 15 Most Carried 10 | 5 8 10 9 Average Carried 6 | 3 4 7 6 Final Capacity 15 | 8 8 15 15 Final Carried 10 | 3 7 10 6 Class Distribution -------------------- 83% | Mutant 6% | Scavenger-Mutant 5% | Gunner 4% | Scavenger-Gunner Dominant Class ---------------- Mutant | -10/Materials Mutant | -9/Materials Gunner | -8/Materials Resources | -11 -10 -9 -8 ----------- Run | Yrd Mat Mat Mat Matter Collected 1835 | 158 289 1137 251 Remotely . | . . . . Salvage Created 1817 | . 361 1010 446 Parts 133 | . 31 83 19 Haulers Intercepted 5 | . . 5 . Recyclers Shooed 1 | . . 1 . Parts Field Recycled . | . . . . Retrieved Matter . | . . . . Parts Self-Destructed . | . . . . Prevented . | . . . . Kills | -11 -10 -9 -8 ------- Run | Yrd Mat Mat Mat Combat Hostiles Destroyed 53 | . 11 30 12 Guns 15 | . 6 1 8 Cannons 38 | . 5 29 4 Classes Destroyed 10 | . 6 3 1 Worker 7 | . 1 6 . Builder 4 | . 2 2 . Tunneler 1 | . 1 . . Hauler 5 | . . 5 . Watcher 3 | . 1 2 . Swarmer 22 | . 5 14 3 Grunt 21 | . 6 9 6 Brawler 1 | . . 1 . Sentry 8 | . . 6 2 Specialist 1 | . . . 1 Best Kill Streak 11 | . 3 11 6 Combat Bots Only 6 | . 3 5 6 Max Kills in Single Turn 1 | . 1 1 1 Gunslinging . | . . . . Exploded . | . . . . Melee . | . . . . Uniques/NPCs Destroyed . | . . . . Combat | -11 -10 -9 -8 -------- Run | Yrd Mat Mat Mat Hostile Shots Fired 413 | . 69 172 172 Missed 137 | . 24 57 56 Damage Taken 3494 | . 429 1231 1834 Core 764 | . 85 129 550 Absorbed by Shields . | . . . . Core Remaining (%) 77 | 100 66 67 . Volleys Fired 217 | . 52 107 58 Largest 3 | . 2 2 3 Hottest 85 | . 85 85 85 Shots Fired 417 | . 104 207 106 Gun 177 | . 74 25 78 Cannon 240 | . 30 182 28 Launcher . | . . . . Special . | . . . . Kinetic 351 | . 52 200 99 Thermal 66 | . 52 7 7 Explosive . | . . . . Electromagnetic . | . . . . Robot Hit Streak 15 | . 15 8 15 Robot Miss Streak 10 | . 10 8 3 Penetration Max . | . . . . Secondary Targets 2 | . 2 . . Max Gunslinging Chain 1 | . 1 . . Shots Hit Robots 227 | . 52 102 73 Core Hits 93 | . 23 48 22 Critical Kills . | . . . . Critical Parts Destroyed 1 | . . . 1 Critical Strikes 13 | . 4 7 2 Burn 3 | . 3 . . Destroy 1 | . . . 1 Blast 9 | . 1 7 1 Melee Attacks . | . . . . Impact . | . . . . Slashing . | . . . . Piercing . | . . . . Sneak Attacks . | . . . . Combat Hostiles . | . . . . Follow-up Attacks . | . . . . Damage Inflicted 4101 | . 730 2168 1203 Guns 1432 | . 438 149 845 Cannons 2669 | . 292 2019 358 Explosions . | . . . . Melee . | . . . . Ramming . | . . . . Kinetic 3682 | . 396 2168 1118 Thermal 419 | . 334 . 85 Explosive . | . . . . Electromagnetic . | . . . . Impact . | . . . . Slashing . | . . . . Piercing . | . . . . Highest Corruption 6 | . . 6 . Average Corruption 5 | . . 5 . Corruption Purged . | . . . . Corruption Blocked . | . . . . Effects 33 | . . 33 . Message Errors 7 | . . 7 . Matter Fused 8 | . . 8 . Heat Flow Errors 5 | . . 5 . Energy Discharges 2 | . . 2 . Data Loss (minor) 4 | . . 4 . Data Loss (major) 2 | . . 2 . Misfires 1 | . . 1 . Alerts 1 | . . 1 . Weapon Failures 3 | . . 3 . Overload Shots . | . . . . Overflow Damage 17 | . . 15 2 Projectiles 17 | . . 15 2 Explosions . | . . . . Melee . | . . . . Knockbacks 28 | . 5 16 7 Impact . | . . . . Kinetic 25 | . 5 14 6 Secondary 3 | . . 2 1 Self-Inflicted Damage . | . . . . Shots . | . . . . Rammed . | . . . . Targets Rammed . | . . . . Kicked . | . . . . Crushed . | . . . . Highest Temperature 287 | . 140 287 233 Average Temperature 52 | . 38 46 96 Received Heat Transfer 834 | . 96 270 468 Siege Activations . | . . . . Robots Corrupted . | . . . . Combat Hostiles . | . . . . Parts Fried . | . . . . Impact Corruptions . | . . . . Robots Melted . | . . . . Combat Hostiles . | . . . . Parts Melted 1 | . 1 . . Heat Transferred 1369 | . 1184 . 185 Parts Sabotaged . | . . . . Parts Stolen . | . . . . Parts Stripped . | . . . . Power Chain Reactions . | . . . . Alert | -11 -10 -9 -8 ------- Run | Yrd Mat Mat Mat Peak Influence 693 | . 217 693 552 Initial 292 | . . 86 292 Average 359 | . 109 475 420 Maximum Alert Level 2 | . 1 2 2 Low Security (%) 32 | 100 93 10 . Level 1 15 | . 6 12 39 Level 2 52 | . . 76 60 Level 3 . | . . . . Level 4 . | . . . . Level 5 . | . . . . High Security . | . . . . Max Security . | . . . . Squads Dispatched 7 | . 2 3 2 Investigation 2 | . 1 1 . Extermination . | . . . . Reinforcement 5 | . 1 2 2 Assault . | . . . . Garrison . | . . . . Intercept . | . . . . Searches Triggered . | . . . . Construction Impeded . | . . . . Haulers Reinforced . | . . . . Active Scanning Responses . | . . . . Cargo Convoy Interrupts . | . . . . Stealth | -11 -10 -9 -8 --------- Run | Yrd Mat Mat Mat Distress Signals 8 | . 1 6 1 Communications Jammed . | . . . . Distress Signals . | . . . . Times Spotted 84 | . 21 46 17 Peak Tracking Total 7 | . 5 7 6 Tactical Retreats 6 | . . 3 3 Traps | -11 -10 -9 -8 ------- Run | Yrd Mat Mat Mat Traps Triggered 3 | . . 3 . Indirectly . | . . . . Trap Hack Attempts . | . . . . Triggered . | . . . . Disarmed . | . . . . Reprogrammed . | . . . . Reused . | . . . . Traps Extracted . | . . . . Installed . | . . . . Triggered . | . . . . Machines | -11 -10 -9 -8 ---------- Run | Yrd Mat Mat Mat Machines Disabled 7 | . 2 4 1 Max in Single Turn 1 | . 1 1 1 Machines Repaired . | . . . . Machines Dismantled . | . . . . Machines Sabotaged . | . . . . Overloaded Fab Kills . | . . . . Hacking | -11 -10 -9 -8 --------- Run | Yrd Mat Mat Mat Machines Accessed 4 | . 1 2 1 Terminals 4 | . 1 2 1 Fabricators . | . . . . Repair Stations . | . . . . Recycling Units . | . . . . Scanalyzers . | . . . . Garrison Access . | . . . . Total Hacks 13 | . 3 5 5 Successful 6 | . 2 2 2 Failed 7 | . 1 3 3 Catastrophic 1 | . . 1 . Database Lockouts . | . . . . Manual 12 | . 3 4 5 Terminals 13 | . 3 5 5 Fabricators . | . . . . Repair Stations . | . . . . Recycling Units . | . . . . Scanalyzers . | . . . . Garrison Access . | . . . . Terminal Hacks 3 | . 1 1 1 Branch Access Points 3 | . 1 1 1 Fabricator Hacks . | . . . . Repair Station Hacks . | . . . . Recycling Unit Hacks . | . . . . Scanalyzer . | . . . . Garrison Access Hacks . | . . . . Unauthorized Hacks 3 | . 1 1 1 Terminals 3 | . 1 1 1 Botnet 3 | . 1 1 1 Fabricators . | . . . . Repair Stations . | . . . . Recycling Units . | . . . . Scanalyzers . | . . . . Garrison Access . | . . . . Data Cores Recovered . | . . . . Used . | . . . . Hacking Detections 4 | . 1 2 1 Full Trace Events 3 | . 1 2 . Feedback Events . | . . . . Feedback Blocked . | . . . . Robot Schematics Acquired . | . . . . Robots Built . | . . . . Authchips . | . . . . Time . | . . . . Total Robot Build Rating . | . . . . Part Schematics Acquired . | . . . . Parts Built . | . . . . Authchips . | . . . . Time . | . . . . Total Part Build Rating . | . . . . Parts Repaired . | . . . . Time . | . . . . Parts Recycled . | . . . . Recycled Matter . | . . . . Retrieved Matter . | . . . . Retrieved Components . | . . . . Parts Scanalyzed . | . . . . Part Schematics Acquired . | . . . . Parts Damaged . | . . . . Bothacking | -11 -10 -9 -8 ------------ Run | Yrd Mat Mat Mat Used RIF Installer . | . . . . Robots Hacked . | . . . . Non-combat . | . . . . Combat . | . . . . Robot Hacks Applied . | . . . . Relay Couplers Released . | . . . . Fabnet Peak Effective % . | . . . . Robots Rewired . | . . . . Allies Hacked . | . . . . Hacks Repelled . | . . . . Allies | -11 -10 -9 -8 -------- Run | Yrd Mat Mat Mat Total Allies . | . . . . Largest Group . | . . . . Highest-Rated Group . | . . . . Highest-Rated Ally . | . . . . Total Orders . | . . . . Ally Attacks . | . . . . Total Damage . | . . . . Kills . | . . . . Allies Corrupted . | . . . . Allies Melted . | . . . . Intel | -11 -10 -9 -8 ------- Run | Yrd Mat Mat Mat Robot Analysis Total . | . . . . Derelict Logs Recovered . | . . . . Drone Launches . | . . . . Drone Recoveries . | . . . . Exploration | -11 -10 -9 -8 ------------- Run | Yrd Mat Mat Mat Turns Passed 2570 | 54 674 1379 463 Spaces Moved 1360 | 39 382 778 161 Core 15 | 10 . . 5 Treads 1 | 1 . . . Legs 1344 | 28 382 778 156 Wheels . | . . . . Hover . | . . . . Flight . | . . . . Fastest Speed 50 | 50 120 90 105 Average Speed 119 | 103 126 109 150 Slowest Speed 400 | 160 190 186 400 Overloaded Moves . | . . . . Propulsion Burnouts . | . . . . Robots Hopped . | . . . . Cave-ins Triggered . | . . . . Exploration Rate (%) 41 | 3 69 70 25 Regions Visited 3 Branch Regions . Pre-discovered Areas . | . . . . Known Exits Taken . | . . . . Unknown Exits Taken 3 | 1 1 1 . Scrap Searched . | . . . . Spaces Dug . | . . . . Terrain Destroyed 13 | . . 12 1 Melee . | . . . . Projectile 13 | . . 12 1 AOE . | . . . . Terrain Rammed . | . . . . Walls Destroyed . | . . . . Machines Disabled . | . . . . Actions | -11 -10 -9 -8 --------- Run | Yrd Mat Mat Mat Total 1914 | 52 473 1099 290 Wait 237 | . 21 164 52 Move 1357 | 38 381 777 161 Hop . | . . . . Pick Up 38 | 6 10 16 6 Fast Attach 4 | 3 . . 1 Attach 29 | 4 4 10 11 Detach 1 | 1 . . . Swap 15 | . 1 13 1 Drop 16 | . 4 12 . Fire 217 | . 52 107 58 Melee . | . . . . Ram . | . . . . Kick . | . . . . Crush . | . . . . Escape Stasis . | . . . . Rewire . | . . . . Trap . | . . . . Miscellaneous . | . . . . Route ------- -11/Scrapyard -10/Materials (discovered 3 exits: *Mat / *Min x2) -9/Materials (discovered 6 exits: *Mat x2 / *Min x2 / *Sto x2) -8/Materials History --------- Turn | Location | Event 9 | -11/Scrapyard | Discovered new exit (range 15) 55 | -11/Scrapyard | Entered Materials 308 | -10/Materials | Build established: Mutant 332 | -10/Materials | Discovered new exit (range 5) 589 | -10/Materials | Discovered new exit (range 6) 674 | -10/Materials | Identified exit to Mines 729 | -10/Materials | Entered another Materials area 729 | -9/Materials | Evolved 2 slots: Propulsion x2 905 | -9/Materials | Discovered new exit (range 10) 1012 | -9/Materials | Discovered new exit (range 14) 1301 | -9/Materials | Identified exit to Mines 1301 | -9/Materials | Identified exit to Storage 1830 | -9/Materials | Discovered new exit (range 9) 2013 | -9/Materials | Discovered new exit (range 10) 2108 | -9/Materials | Entered another Materials area 2108 | -8/Materials | Evolved 2 slots: Utility x1, Weapon x1 2205 | -8/Materials | Lost 4 parts (3n1u) 2282 | -8/Materials | Lost 3 parts (1p2w) 2525 | -8/Materials | Core integrity fell below 50% 2556 | -8/Materials | Core integrity fell below 20% 2567 | -8/Materials | Lost 6 parts (4n1u1w) 2571 | -8/Materials | Destroyed by X-57 Shotgunner with High-powered Shotgun Last Messages --------------- 02463_ Grenade Launcher destroyed. 02466_ Y-45 Defender destroyed. 02471_ Acquired Hacking Suite. 02479_ Rocket Launcher destroyed. 02512_ ALERT: Suspicious intruders detected, dispatching Specialist reinforcements to area. 02516_ Aluminum Leg destroyed. 02517_ VSS Leg destroyed. 02524_ Penetrated by Slug. 02526_ Imp. Assault Rifle destroyed. 02526_ Deuterium Engine blasted off. 02528_ Aluminum Leg destroyed. 02529_ Acquired 3 matter. 02530_ Heat Sink destroyed. 02534_ Acquired 2 matter. 02536_ Penetrated by Slug. 02536_ Aluminum Leg destroyed. 02557_ Acquired Field Laser. 02562_ X-57 Shotgunner destroyed. 02566_ K-01 Serf collects debris. Map ----- +----------------------------------------------------+ | ?????????????????? ?????????????? | | ?????????????????# /????????????? | | ?????????????????# #????????????? | | ?????????????????# #????????????? | | ?????????????????# #????????????? | | ?????????????????# #????????????? | | ?????????????????# #????????????? | | ?????????????????# #????????????? | | ??????????######## #????????????? | | ??????????# #????????????? | | ??????????# ###########??? | | ??????????# ? # [ #??? | | ???????????# #???# # !% #??? | | ?????#######+##### # " #??? | | ????## # # """ #??? | | ??#""" + + "" """ #?? | | ??#"G """ """ # % # "T """ ##?? | | ??#""" """ """ # * # "" """ #??? | | ???### """ """ #% # #??? | | ?????# # ###########??? | | ?????# ! # # #?????? | | ?????############# # k #?????? | | ?????????????????# + #?????? | | ?????????????????# #x!![ #?????? | | ?????????????????# # ![[= #?????? | | ?????????????????# # ![@% #?????? | | ??????????????#### ######+# ##??? | | ?????????????##! # #??? | | ?????????????#! # """ ???? | | ?????????????#! + = ! """ ???? | | ?????????????#! # """ ???? | | ?????????????#! #"S #??? | | ?????????????##! #?"" #??? | | ??????????????#### #?"" #??? | | ?????????????????# #?? #??? | | ?????????????????# #??########??? | | ?????????????????# #????????????? | | ?????????????????# ##########???? | | ?????????????????# #! #???? | | ?????????????????# # #???? | | ?????????????????# #/= !##??? | | ?????????????????# #== [ #??? | | ?????????????????# # =##??? | | ?????????????????# + #???? | | ?????????????????# # #???? | | ?????????????????# # !#???? | | ??????????##+##??# # #???? | | ??????????# #??# ###########??? | | ??????????# #??# # #??? | | ?????? # #??# #] ???? | +----------------------------------------------------+ Best States ------------- Heat Dissipation 41 Energy Generation 14 Energy Capacity 275 Matter Stores 367 Matter Capacity 500 Sight Range 16 Terrain Scan Density 85 Armor Coverage 150 Evasion (%) 55 Item Schematics ----------------- None Robot Schematics ------------------ None Fabricated ------------ Nothing Alien Tech Used ----------------- None Achievements -------------- True Hacker Challenges ------------ None Game ------ Seed LegPortableAmplifier Manual? 0 Play Time 00:32:23 Cumulative 16.3 hours Start 2024.07.01 @ 09:09:58 End 2024.07.01 @ 09:37:33 Sessions 1 Manual Loads 0 Difficulty Rogue Special Mode None Game No. 70 Rogue 70 Adventurer 0 Explorer 0 Win Type - Total 0 Types 0/0/0/0/0/0/0/0/0 Lore% 5 Gallery% 20 Achievement% 14 Wizard Run 0 Options --------- Layout 1 ASCII 0 Keyboard 0 Movement Mouse Keybinds 0 Fullscreen 1 Font 24/Smallcaps Map View 50x35 Zoom Use 0% Tactical HUD 1 Map Filters NONE Filters NONE Steam 1 RUN: 4c06d85d-fb05-427d-bf1b-be8cc4444eb3